fUST/lending_fUST_20250213
["ID","MTS","AMOUNT","RATE_DAILY","PERIOD"]
[352960822,1739461851179,-500.0,0.00013863,2]
[352960823,1739461851189,-500.0,0.00013863,2]
[352960824,1739461851199,-500.0,0.00013863,2]
[352960825,1739461851208,-317.46682443,0.00013863,2]
[352960826,1739461851218,-500.0,0.00013863,2]
[352960827,1739461851227,-500.0,0.00013863,2]
[352960828,1739461851237,-500.0,0.00013863,2]
[352960829,1739461851250,-500.0,0.00013863,2]
[352960830,1739461851260,-500.0,0.00013863,2]
[352960831,1739461851283,-500.0,0.00013863,2]
[352960832,1739461851295,-645.77786201,0.00013863,2]
[352960833,1739461851305,-500.0,0.00013863,2]
[352960834,1739461851316,-500.0,0.00013863,2]
[352960835,1739461851326,-296.46568843,0.00013863,2]
[352960836,1739461851337,-500.0,0.00013863,2]
[352960837,1739461851348,-500.0,0.00013863,2]
[352960838,1739461851359,-644.58839537,0.00013863,2]
[352960839,1739461851369,-500.0,0.00013863,2]
[352960840,1739461851379,-500.0,0.00013863,2]
[352960841,1739461851390,-601.67,0.00013863,2]
[352960842,1739461851401,-500.0,0.00013863,2]
[352960843,1739461851411,-500.0,0.00013863,2]
[352960844,1739461851422,-500.0,0.00013863,2]
[352960845,1739461851432,-500.0,0.00013863,2]
[352960846,1739461851443,-500.0,0.00013863,2]
[352960847,1739461851453,-500.0,0.00013863,2]
[352960848,1739461851463,-500.0,0.00013863,2]
[352960849,1739461851474,-500.0,0.00013863,2]
[352960850,1739461851484,-500.0,0.00013863,2]
[352960851,1739461851500,-500.0,0.00013863,2]
[352960852,1739461851510,-500.0,0.00013863,2]
[352960853,1739461851520,-500.0,0.00013863,2]
[352960854,1739461851530,-500.0,0.00013863,2]
[352960855,1739461851541,-500.0,0.00013863,2]
[352960856,1739461851551,-500.0,0.00013863,2]
[352960857,1739461851561,-500.0,0.00013863,2]
[352960858,1739461851571,-500.0,0.00013863,2]
[352960859,1739461851581,-500.0,0.00013863,2]
[352960860,1739461851591,-813.84,0.00013863,2]
[352960861,1739461851602,-590.5,0.00013863,2]
[352960862,1739461851613,-500.0,0.00013863,2]
[352960863,1739461851623,-500.0,0.00013863,2]
[352960864,1739461851634,-500.0,0.00013863,2]
[352960865,1739461851644,-500.0,0.00013863,2]
[352960866,1739461851654,-1444.43,0.00013863,2]
[352960867,1739461851665,-631.11461925,0.00013863,2]
[352960868,1739461851676,-500.0,0.00013863,2]
[352960869,1739461851685,-500.0,0.00013863,2]
[352960870,1739461851696,-500.0,0.00013863,2]
[352960871,1739461851706,-500.0,0.00013863,2]
[352960872,1739461851716,-500.0,0.00013863,2]
[352960873,1739461851727,-500.0,0.00013863,2]
[352960874,1739461851737,-500.0,0.00013863,2]
[352960875,1739461851750,-500.0,0.00013863,2]
[352960876,1739461851760,-500.0,0.00013863,2]
[352960877,1739461851770,-358.13328798,0.00013863,2]
[352960878,1739461851780,-500.0,0.00013863,2]
[352960879,1739461851790,-500.0,0.00013863,2]
[352960880,1739461851800,-1169.09,0.00013863,2]
[352960881,1739461851811,-500.0,0.00013863,2]
[352960882,1739461851822,-500.0,0.00013863,2]
[352960883,1739461851832,-500.0,0.00013863,2]
[352960884,1739461851843,-500.0,0.00013863,2]
[352960885,1739461851854,-500.0,0.00013863,2]
[352960886,1739461851864,-500.0,0.00013863,2]
[352960887,1739461851874,-500.0,0.00013863,2]
[352960888,1739461851884,-500.0,0.00013863,2]
[352960889,1739461851894,-500.0,0.00013863,2]
[352960890,1739461851904,-500.0,0.00013863,2]
[352960891,1739461851915,-263.67472535,0.00013863,2]
[352960892,1739461851925,-500.0,0.00013863,2]
[352960893,1739461851935,-500.0,0.00013863,2]
[352960894,1739461851945,-500.0,0.00013863,2]
[352960895,1739461851954,-500.0,0.00013863,2]
[352960896,1739461851964,-500.0,0.00013863,2]
[352960897,1739461851974,-503.1302862,0.00013863,2]
[352960898,1739461851984,-500.0,0.00013863,2]
[352960899,1739461851995,-500.0,0.00013863,2]
[352960900,1739461852006,-500.0,0.00013863,2]
[352960901,1739461852016,-500.0,0.00013863,2]
[352960902,1739461852026,-535.42,0.00013863,2]
[352960903,1739461852039,-500.0,0.00013863,2]
[352960904,1739461852049,-500.0,0.00013863,2]
[352960905,1739461852059,-500.0,0.00013863,2]
[352960906,1739461852070,-500.0,0.00013863,2]
[352960907,1739461852080,-500.0,0.00013863,2]
[352960908,1739461852090,-1035.87,0.00013863,2]
[352960909,1739461852100,-500.0,0.00013863,2]
[352960910,1739461852110,-500.0,0.00013863,2]
[352960911,1739461852126,-500.0,0.00013863,2]
[352960912,1739461852136,-514.74341837,0.00013863,2]
[352960913,1739461852146,-500.0,0.00013863,2]
[352960914,1739461852156,-500.0,0.00013863,2]
[352960915,1739461852166,-500.0,0.00013863,2]
[352960916,1739461852176,-915.38,0.00013863,2]
[352960917,1739461852187,-500.0,0.00013863,2]
[352960918,1739461852196,-500.0,0.00013863,2]
[352960919,1739461852206,-532.81869721,0.00013863,2]
[352960920,1739461852217,-500.0,0.00013863,2]
[352960921,1739461852227,-500.0,0.00013863,2]
[352960922,1739461852237,-500.0,0.00013863,2]
[352960923,1739461852249,-553.68,0.00013863,2]
[352960924,1739461852259,-500.0,0.00013863,2]
[352960925,1739461852269,-500.0,0.00013863,2]
[352960926,1739461852279,-500.0,0.00013863,2]
[352960927,1739461852289,-500.0,0.00013863,2]
[352960928,1739461852299,-500.0,0.00013863,2]
[352960929,1739461852310,-568.89,0.00013863,2]
[352960930,1739461852320,-1596.44,0.00013863,2]
[352960931,1739461852330,-500.0,0.00013863,2]
[352960932,1739461852340,-500.0,0.00013863,2]
[352960933,1739461852351,-500.0,0.00013863,2]
[352960934,1739461852361,-990.33,0.00013863,2]
[352960935,1739461852371,-500.0,0.00013863,2]
[352960936,1739461852381,-500.0,0.00013863,2]
[352960937,1739461852391,-500.0,0.00013863,2]
[352960938,1739461852401,-500.0,0.00013863,2]
[352960939,1739461852412,-500.0,0.00013863,2]
[352960940,1739461852422,-500.0,0.00013863,2]
[352960941,1739461852432,-881.17,0.00013863,2]
[352960942,1739461852442,-500.0,0.00013863,2]
[352960943,1739461852452,-500.0,0.00013863,2]
[352960944,1739461852462,-500.0,0.00013863,2]
[352960945,1739461852472,-500.0,0.00013863,2]
[352960946,1739461852482,-500.0,0.00013863,2]
[352960947,1739461852494,-500.0,0.00013863,2]
[352960948,1739461852503,-500.0,0.00013863,2]
[352960949,1739461852513,-508.89,0.00013863,2]
[352960950,1739461852522,-500.0,0.00013863,2]
[352960951,1739461852532,-500.0,0.00013863,2]
[352960952,1739461852542,-500.0,0.00013863,2]
[352960953,1739461852552,-506.13147615,0.00013863,2]
[352960954,1739461852562,-1024.99,0.00013863,2]
[352960955,1739461852572,-500.0,0.00013863,2]
[352960956,1739461852582,-500.0,0.00013863,2]
[352960957,1739461852592,-433.20793503,0.00013863,2]
[352960958,1739461852602,-500.0,0.00013863,2]
[352960959,1739461852611,-627.15171464,0.00013863,2]
[352960960,1739461852621,-521.83,0.00013863,2]
[352960961,1739461852631,-977.93,0.00013863,2]
[352960962,1739461852642,-500.0,0.00013863,2]
[352960963,1739461852652,-288.91763651,0.00013863,2]
[352960964,1739461852662,-500.0,0.00013863,2]
[352960965,1739461852673,-500.0,0.00013863,2]
[352960966,1739461852683,-500.0,0.00013863,2]
[352960967,1739461852706,-500.0,0.00013863,2]
[352960968,1739461852716,-500.0,0.00013863,2]
[352960969,1739461852726,-444.29389264,0.00013863,2]
[352960970,1739461852737,-500.0,0.00013863,2]
[352960971,1739461852749,-500.0,0.00013863,2]
[352960972,1739461852759,-500.0,0.00013863,2]
[352960973,1739461852769,-500.0,0.00013863,2]
[352960974,1739461852778,-512.01,0.00013863,2]
[352960975,1739461852788,-500.0,0.00013863,2]
[352960976,1739461852798,-500.0,0.00013863,2]
[352960977,1739461852808,-500.0,0.00013863,2]
[352960978,1739461852818,-500.0,0.00013863,2]
[352960979,1739461852829,-500.0,0.00013863,2]
[352960980,1739461852838,-500.0,0.00013863,2]
[352960981,1739461852849,-500.0,0.00013863,2]
[352960982,1739461852859,-500.0,0.00013863,2]
[352960983,1739461852869,-500.0,0.00013863,2]
[352960984,1739461852879,-248.87792677,0.00013863,2]
[352960985,1739461852888,-3435.07,0.00013863,2]
[352960986,1739461852898,-500.0,0.00013863,2]
[352960987,1739461852908,-500.0,0.00013863,2]
[352960988,1739461852918,-500.0,0.00013863,2]
[352960989,1739461852927,-500.0,0.00013863,2]
[352960990,1739461852936,-500.0,0.00013863,2]
[352960991,1739461852947,-500.0,0.00013863,2]
[352960992,1739461852958,-500.0,0.00013863,2]
[352960993,1739461852968,-500.0,0.00013863,2]
[352960994,1739461852977,-190.05980403,0.00013863,2]
[352960995,1739461852987,-609.21,0.00013863,2]
[352960996,1739461852999,-500.0,0.00013863,2]
[352960997,1739461853009,-500.0,0.00013863,2]
[352960998,1739461853019,-500.0,0.00013863,2]
[352960999,1739461853030,-500.0,0.00013863,2]
[352961000,1739461853044,-500.0,0.00013863,2]
[352961001,1739461853055,-1100.5,0.00013863,2]
[352961002,1739461853065,-500.0,0.00013863,2]
[352961003,1739461853075,-500.0,0.00013863,2]
[352961004,1739461853086,-500.0,0.00013863,2]
[352961005,1739461853254,-500.0,0.00013863,2]
[352961006,1739461853267,-500.0,0.00013863,2]
[352961007,1739461853277,-497.42507754,0.00013863,2]
[352961008,1739461853287,-500.0,0.00013863,2]
[352961009,1739461853296,-2169.9,0.00013863,2]
[352961010,1739461853306,-1026.66,0.00013863,2]
[352961011,1739461853316,-285.92763327,0.00013863,2]
[352961012,1739461853326,-883.8,0.00013863,2]
[352961013,1739461853336,-500.0,0.00013863,2]
[352961014,1739461853346,-858.32,0.00013863,2]
[352961015,1739461853355,-500.0,0.00013863,2]
[352961016,1739461853366,-500.0,0.00013863,2]
[352961017,1739461853376,-2036.97,0.00013863,2]
[352961018,1739461853388,-523.86,0.00013863,2]
[352961019,1739461853397,-779.69,0.00013863,2]
[352961020,1739461853409,-500.0,0.00013863,2]
[352961021,1739461853419,-500.0,0.00013863,2]
[352961022,1739461853431,-500.0,0.00013863,2]
[352961023,1739461853454,-500.0,0.00013863,2]
[352961024,1739461853465,-500.0,0.00013863,2]
[352961025,1739461853476,-3527.94,0.00013863,2]
[352961026,1739461853488,-500.0,0.00013863,2]
[352961027,1739461853500,-500.0,0.00013863,2]
[352961028,1739461853511,-500.0,0.00013863,2]
[352961029,1739461853521,-500.0,0.00013863,2]
[352961030,1739461853532,-2602.7,0.00013863,2]
[352961031,1739461853542,-2095.69,0.00013863,2]
[352961032,1739461853552,-632.79,0.00013863,2]
[352961033,1739461853563,-6041.34,0.00013863,2]
[352961034,1739461853574,-500.0,0.00013863,2]
[352961035,1739461853585,-500.0,0.00013863,2]
[352961036,1739461853595,-500.0,0.00013863,2]
[352961037,1739461853606,-500.0,0.00013863,2]
[352961038,1739461853616,-500.0,0.00013863,2]
[352961039,1739461853626,-500.0,0.00013863,2]
[352961040,1739461853637,-500.0,0.00013863,2]
[352961041,1739461853647,-500.0,0.00013863,2]
[352961042,1739461853657,-500.0,0.00013863,2]
[352961043,1739461853668,-500.0,0.00013863,2]
[352961044,1739461853679,-500.0,0.00013863,2]
[352961045,1739461853689,-500.0,0.00013863,2]
[352961046,1739461853700,-1417.33,0.00013863,2]
[352961047,1739461853711,-500.0,0.00013863,2]
[352961048,1739461853721,-500.0,0.00013863,2]
[352961049,1739461853732,-500.0,0.00013863,2]
[352961050,1739461853744,-322.49901301,0.00013863,2]
[352961051,1739461853754,-500.0,0.00013863,2]
[352961052,1739461853765,-500.0,0.00013863,2]
[352961053,1739461853775,-500.0,0.00013863,2]
[352961054,1739461853786,-500.0,0.00013863,2]
[352961055,1739461853796,-515.29736931,0.00013863,2]
[352961056,1739461853806,-500.0,0.00013863,2]
[352961057,1739461853816,-1307.25,0.00013863,2]
[352961058,1739461853828,-605.09,0.00013863,2]
[352961059,1739461853838,-500.0,0.00013863,2]
[352961060,1739461853848,-500.0,0.00013863,2]
[352961061,1739461853860,-500.0,0.00013863,2]
[352961062,1739461853870,-500.0,0.00013863,2]
[352961063,1739461853880,-500.0,0.00013863,2]
[352961064,1739461853890,-500.0,0.00013863,2]
[352961065,1739461853900,-500.0,0.00013863,2]
[352961066,1739461853909,-500.0,0.00013863,2]
[352961067,1739461853920,-1651.71,0.00013863,2]
[352961068,1739461853929,-500.0,0.00013863,2]
[352961069,1739461853939,-500.0,0.00013863,2]
[352961070,1739461853950,-500.0,0.00013863,2]
[352961071,1739461853961,-500.0,0.00013863,2]
[352961072,1739461853972,-6256.81,0.00013863,2]
[352961073,1739461853982,-500.0,0.00013863,2]
[352961074,1739461853994,-4436.66,0.00013863,2]
[352961075,1739461854004,-500.0,0.00013863,2]
[352961076,1739461854014,-223.8687845,0.00013863,2]
[352961077,1739461854026,-500.0,0.00013863,2]
[352961078,1739461854041,-500.0,0.00013863,2]
[352961079,1739461854051,-500.0,0.00013863,2]
[352961080,1739461854062,-3486.71,0.00013863,2]
[352961081,1739461854072,-2522.2,0.00013863,2]
[352961082,1739461854083,-500.0,0.00013863,2]
[352961083,1739461854094,-558.66,0.00013863,2]
[352961084,1739461854104,-1094.53,0.00013863,2]
[352961085,1739461854117,-510.59,0.00013863,2]
[352961086,1739461854128,-500.0,0.00013863,2]
[352961087,1739461854139,-500.0,0.00013863,2]
[352961088,1739461854150,-500.0,0.00013863,2]
[352961089,1739461854161,-500.0,0.00013863,2]
[352961090,1739461854173,-500.0,0.00013863,2]
[352961091,1739461854184,-1694.73,0.00013863,2]
[352961092,1739461854195,-500.0,0.00013863,2]
[352961093,1739461854205,-500.0,0.00013863,2]
[352961094,1739461854217,-500.0,0.00013863,2]
[352961095,1739461854226,-504.76,0.00013863,2]
[352961096,1739461854238,-524.02,0.00013863,2]
[352961097,1739461854252,-504.43353363,0.00013863,2]
[352961098,1739461854262,-500.0,0.00013863,2]
[352961099,1739461854272,-500.0,0.00013863,2]
[352961100,1739461854281,-500.0,0.00013863,2]
[352961101,1739461854291,-500.0,0.00013863,2]
[352961102,1739461854302,-500.0,0.00013863,2]
[352961103,1739461854313,-500.0,0.00013863,2]
[352961104,1739461854324,-269.4058134,0.00013863,2]
[352961105,1739461854335,-500.0,0.00013863,2]
[352961106,1739461854346,-500.0,0.00013863,2]
[352961107,1739461854358,-1468.87,0.00013863,2]
[352961108,1739461854369,-500.0,0.00013863,2]
[352961109,1739461854379,-500.0,0.00013863,2]
[352961110,1739461854390,-500.0,0.00013863,2]
[352961111,1739461854400,-642.84892096,0.00013863,2]
[352961112,1739461854410,-500.0,0.00013863,2]
[352961113,1739461854420,-500.0,0.00013863,2]
[352961114,1739461854430,-500.0,0.00013863,2]
[352961115,1739461854440,-521.68,0.00013863,2]
[352961116,1739461854449,-500.0,0.00013863,2]
[352961117,1739461854459,-500.0,0.00013863,2]
[352961118,1739461854471,-1295.28,0.00013863,2]
[352961119,1739461854481,-500.0,0.00013863,2]
[352961120,1739461854490,-500.0,0.00013863,2]
[352961121,1739461854502,-3593.86,0.00013863,2]
[352961122,1739461854511,-546.76392281,0.00013863,2]
[352961123,1739461854521,-519.42,0.00013863,2]
[352961124,1739461854531,-514.83543671,0.00013863,2]
[352961125,1739461854541,-2227.6,0.00013863,2]
[352961126,1739461854550,-16497.76,0.00013863,2]
[352961127,1739461854560,-500.0,0.00013863,2]
[352961128,1739461854570,-2397.33,0.00013863,2]
[352961129,1739461854580,-500.0,0.00013863,2]
[352961130,1739461854590,-500.0,0.00013863,2]
[352961131,1739461854600,-500.0,0.00013863,2]
[352961132,1739461854610,-500.0,0.00013863,2]
[352961133,1739461854620,-500.0,0.00013863,2]
[352961134,1739461854630,-500.0,0.00013863,2]
[352961135,1739461854640,-6901.89627257,0.00013863,2]
[352961136,1739461854674,-7366.45566224,0.00013863,2]
[352961137,1739461854686,-3813.49806519,0.00013863,2]
[352961138,1739461854697,-830.28117655,0.00013863,2]
[352961139,1739461854710,-690.55882345,0.00013863,2]
[352961140,1739461854721,-500.0,0.00013863,2]
[352961141,1739461854731,-500.0,0.00013863,2]
[352961142,1739461854742,-31.78078335,0.00013863,2]
[352961143,1739461854756,-468.21921665,0.00013863,2]
[352961144,1739461854767,-1029.14071035,0.00013863,2]
[352961145,1739461854779,-286.63928965,0.00013863,2]
[352961146,1739461854789,-501.2788182,0.00013863,2]
[352961147,1739461854799,-1740.3855304,0.00013863,2]
[352961148,1739461854811,-862.66981828,0.00013863,2]
[352961149,1739461854823,-853.65504678,0.00013863,2]
[352961150,1739461854864,-40504.84960454,0.00013863,2]
[352961151,1739461854875,-519.87,0.00013863,2]
[352961152,1739461854884,-500.0,0.00013863,2]
[352961153,1739461854896,-500.0,0.00013863,2]
[352961154,1739461854906,-500.0,0.00013863,2]
[352961155,1739461854916,-500.0,0.00013863,2]
[352961156,1739461854925,-689.71,0.00013863,2]
[352961157,1739461854935,-500.0,0.00013863,2]
[352961158,1739461854945,-500.0,0.00013863,2]
[352961159,1739461854954,-500.0,0.00013863,2]
[352961160,1739461854964,-1579.99783682,0.00013863,2]
[352961161,1739461855186,-1424.27216318,0.00013863,2]
[352961162,1739461855196,-500.0,0.00013863,2]
[352961163,1739461855207,-500.0,0.00013863,2]
[352961164,1739461855217,-1620.15,0.00013863,2]
[352961165,1739461855227,-757.41,0.00013863,2]
[352961166,1739461855236,-574.31766387,0.00013863,2]
[352961167,1739461855540,-669.55201095,0.0001378,5]
[352961168,1739461855552,-2124.09251608,0.0001378,5]
[352961169,1739461855562,-57.19191411,0.00013863,2]
[352961170,1739461855574,-5.77042202,0.00013863,2]
[352961171,1739461855584,-556.65911642,0.00013863,2]
[352961172,1739461855594,-330.15014126,0.00013863,2]
[352961173,1739461855606,-656.55774215,0.00013863,2]
[352961174,1739461855618,-1212.23211659,0.00013863,2]
[352961175,1739461855627,-500.0,0.00013863,2]
[352961176,1739461855639,-500.0,0.00013863,2]
[352961177,1739461855649,-14.47804982,0.00013863,2]
[352961178,1739461855661,-453.40201646,0.00013863,2]
[352961179,1739461856021,-32.11993372,0.00013863,2]
[352961180,1739461856030,-5922.52299771,0.00013863,2]
[352961181,1739461856045,-657.04744447,0.00013863,2]
[352961182,1739461856057,-1257.25955782,0.00013863,2]
[352961183,1739461856066,-500.0,0.00013863,2]
[352961184,1739461856076,-500.0,0.00013863,2]
[352961185,1739461856086,-500.0,0.00013863,2]
[352961186,1739461856096,-1325.45,0.00013863,2]
[352961187,1739461856105,-500.0,0.00013863,2]
[352961188,1739461856118,-500.0,0.00013863,2]
[352961189,1739461856128,-1744.8,0.00013863,2]
[352961190,1739461856137,-500.0,0.00013863,2]
[352961191,1739461856148,-293.26528263,0.00013863,2]
[352961192,1739461856157,-623.96,0.00013863,2]
[352961193,1739461856167,-500.0,0.00013863,2]
[352961194,1739461856177,-500.0,0.00013863,2]
[352961195,1739461856187,-728.64,0.00013863,2]
[352961196,1739461856196,-242.68308728,0.00013863,2]
[352961197,1739461856206,-500.0,0.00013863,2]
[352961198,1739461856215,-546.79,0.00013863,2]
[352961199,1739461856224,-1069.5,0.00013863,2]
[352961200,1739461856234,-553.95,0.00013863,2]
[352961201,1739461856246,-500.0,0.00013863,2]
[352961202,1739461856255,-918.42,0.00013863,2]
[352961203,1739461856265,-544.84,0.00013863,2]
[352961204,1739461856274,-500.0,0.00013863,2]
[352961205,1739461856284,-500.0,0.00013863,2]
[352961206,1739461856294,-1299.0,0.00013863,2]
[352961207,1739461856304,-500.0,0.00013863,2]
[352961208,1739461856316,-500.0,0.00013863,2]
[352961209,1739461856327,-500.0,0.00013863,2]
[352961210,1739461856337,-505.84104827,0.00013863,2]
[352961211,1739461856346,-509.69946105,0.00013888,2]
[352961212,1739461856360,-418.79507187,0.00013945,2]
[352961213,1739461856369,-628.21032011,0.00013945,2]
[352961214,1739461856380,-500.0,0.00013945,2]
[352961215,1739461856389,-500.0,0.00013945,2]
[352961216,1739461856398,-500.0,0.00013945,2]
[352961217,1739461856408,-223.55051509,0.00013945,2]
[352961218,1739461856417,-500.0,0.00013945,2]
[352961219,1739461856426,-199.23926275,0.00013945,2]
[352961220,1739461856436,-500.0,0.00013945,2]
[352961221,1739461856446,-500.0,0.00013945,2]
[352961222,1739461856456,-519.25639757,0.00013945,2]
[352961223,1739461856465,-500.0,0.00013945,2]
[352961224,1739461856475,-500.0,0.00013945,2]
[352961225,1739461856484,-500.0,0.00013945,2]
[352961226,1739461856493,-346.69931981,0.00013945,2]
[352961227,1739461856509,-153.30068019,0.00013945,2]
[352961228,1739461856518,-500.0,0.00013945,2]
[352961229,1739461856528,-500.0,0.00013945,2]
[352961230,1739461856537,-500.0,0.00013945,2]
[352961231,1739461856547,-403.15620718,0.00013945,2]
[352961232,1739461856556,-500.0,0.00013945,2]
[352961233,1739461856567,-766.28,0.00013945,2]
[352961234,1739461856577,-500.0,0.00013945,2]
[352961235,1739461856587,-500.0,0.00013945,2]
[352961236,1739461856596,-500.0,0.00013945,2]
[352961237,1739461856606,-500.0,0.00013945,2]
[352961238,1739461856616,-500.0,0.00013945,2]
[352961239,1739461856625,-525.41,0.00013945,2]
[352961240,1739461856635,-500.0,0.00013945,2]
[352961241,1739461856644,-500.0,0.00013945,2]
[352961242,1739461856654,-500.0,0.00013945,2]
[352961243,1739461856663,-500.0,0.00013945,2]
[352961244,1739461856673,-500.0,0.00013945,2]
[352961245,1739461856682,-500.0,0.00013945,2]
[352961246,1739461856692,-500.0,0.00013945,2]
[352961247,1739461856702,-500.0,0.00013945,2]
[352961248,1739461856712,-504.81887078,0.00013945,2]
[352961249,1739461856721,-500.0,0.00013945,2]
[352961250,1739461856731,-500.0,0.00013945,2]
[352961251,1739461856740,-500.0,0.00013945,2]
[352961252,1739461856752,-500.0,0.00013945,2]
[352961253,1739461856762,-500.0,0.00013945,2]
[352961254,1739461856771,-500.0,0.00013945,2]
[352961255,1739461856782,-284.82802789,0.00013945,2]
[352961256,1739461856791,-500.0,0.00013945,2]
[352961257,1739461856800,-500.0,0.00013945,2]
[352961258,1739461856810,-500.0,0.00013945,2]
[352961259,1739461856820,-500.0,0.00013945,2]
[352961260,1739461856829,-520.27,0.00013945,2]
[352961261,1739461856839,-724.24,0.00013945,2]
[352961262,1739461856848,-833.87,0.00013945,2]
[352961263,1739461856858,-526.66,0.00013945,2]
[352961264,1739461856867,-500.0,0.00013945,2]
[352961265,1739461856878,-500.0,0.00013945,2]
[352961266,1739461856887,-500.0,0.00013945,2]
[352961267,1739461856896,-492.31292864,0.00013945,2]
[352961268,1739461856906,-500.0,0.00013945,2]
[352961269,1739461856915,-500.0,0.00013945,2]
[352961270,1739461856924,-500.0,0.00013945,2]
[352961271,1739461856934,-500.0,0.00013945,2]
[352961272,1739461856944,-500.0,0.00013945,2]
[352961273,1739461856953,-500.0,0.00013945,2]
[352961274,1739461856962,-500.0,0.00013945,2]
[352961275,1739461856972,-500.0,0.00013945,2]
[352961276,1739461856982,-500.0,0.00013945,2]
[352961277,1739461856991,-500.0,0.00013945,2]
[352961278,1739461857001,-500.0,0.00013945,2]
[352961279,1739461857010,-500.0,0.00013945,2]
[352961280,1739461857019,-500.0,0.00013945,2]
[352961281,1739461857029,-500.0,0.00013945,2]
[352961282,1739461857039,-500.0,0.00013945,2]
[352961283,1739461857049,-500.0,0.00013945,2]
[352961284,1739461857060,-500.0,0.00013945,2]
[352961285,1739461857070,-1026.37,0.00013945,2]
[352961286,1739461857081,-500.0,0.00013945,2]
[352961287,1739461857093,-485.14047109,0.00013945,2]
[352961288,1739461857102,-500.0,0.00013945,2]
[352961289,1739461857113,-500.0,0.00013945,2]
[352961290,1739461857125,-500.0,0.00013945,2]
[352961291,1739461857137,-500.0,0.00013945,2]
[352961292,1739461857146,-500.0,0.00013945,2]
[352961293,1739461857157,-500.0,0.00013945,2]
[352961294,1739461857166,-500.0,0.00013945,2]
[352961295,1739461857176,-500.0,0.00013945,2]
[352961296,1739461857185,-580.25595836,0.00013945,2]
[352961297,1739461857195,-500.0,0.00013945,2]
[352961298,1739461857204,-500.0,0.00013945,2]
[352961299,1739461857214,-500.0,0.00013945,2]
[352961300,1739461857223,-500.0,0.00013945,2]
[352961301,1739461857233,-500.0,0.00013945,2]
[352961302,1739461857243,-500.0,0.00013945,2]
[352961303,1739461857254,-500.0,0.00013945,2]
[352961304,1739461857263,-500.0,0.00013945,2]
[352961305,1739461857273,-500.0,0.00013945,2]
[352961306,1739461857282,-601.67,0.00013945,2]
[352961307,1739461857292,-500.0,0.00013945,2]
[352961308,1739461857301,-500.0,0.00013945,2]
[352961309,1739461857310,-500.0,0.00013945,2]
[352961310,1739461857320,-500.0,0.00013945,2]
[352961311,1739461857329,-500.0,0.00013945,2]
[352961312,1739461857339,-500.0,0.00013945,2]
[352961313,1739461857348,-500.0,0.00013945,2]
[352961314,1739461857358,-500.0,0.00013945,2]
[352961315,1739461857368,-500.0,0.00013945,2]
[352961316,1739461857377,-500.0,0.00013945,2]
[352961317,1739461857387,-500.0,0.00013945,2]
[352961318,1739461857396,-500.0,0.00013945,2]
[352961319,1739461857406,-500.0,0.00013945,2]
[352961320,1739461857415,-500.0,0.00013945,2]
[352961321,1739461857424,-500.0,0.00013945,2]